[Event "Live Chess"]
[Site "Chess.com"]
[Date "2010.12.10"]
[Round "-"]
[White "sitan123"]
[Black "hipposcottimus"]
[Result "0-1"]
[CurrentPosition "2k5/1pp2p1p/3p4/8/PPP1P3/2N2qr1/3QK3/R7 w - -"]
[Timezone "UTC"]
[ECO "C23"]
[ECOUrl "https://www.chess.com/openings/Bishops-Opening-2...Nc6"]
[UTCDate "2010.12.10"]
[UTCTime "05:55:30"]
[WhiteElo "1530"]
[BlackElo "1668"]
[TimeControl "60"]
[Termination "hipposcottimus won on time"]
[StartTime "05:55:30"]
[EndDate "2010.12.10"]
[EndTime "05:57:39"]
[Link "https://www.chess.com/game/live/75812785"]

1. e4 {[%clk 0:01:00]} 1... e5 {[%clk 0:01:00]} 2. Bc4 {[%clk 0:00:59.4]} 2... Nc6 {[%clk 0:00:59]} 3. Qh5 {[%clk 0:00:57.3]} 3... g6 {[%clk 0:00:57]} 4. Qd1 {[%clk 0:00:49]} 4... Nf6 {[%clk 0:00:54.1]} 5. Be2 {[%clk 0:00:48.6]} 5... Nxe4 {[%clk 0:00:52.8]} 6. d3 {[%clk 0:00:47.5]} 6... Nf6 {[%clk 0:00:49.6]} 7. Nf3 {[%clk 0:00:46.8]} 7... Be7 {[%clk 0:00:49.3]} 8. O-O {[%clk 0:00:46.4]} 8... d6 {[%clk 0:00:48.8]} 9. Bg5 {[%clk 0:00:46]} 9... Bg4 {[%clk 0:00:47.9]} 10. Bh6 {[%clk 0:00:44.5]} 10... Qd7 {[%clk 0:00:38.8]} 11. c4 {[%clk 0:00:41.9]} 11... O-O-O {[%clk 0:00:37.3]} 12. Nc3 {[%clk 0:00:41.4]} 12... Nd4 {[%clk 0:00:35.2]} 13. b4 {[%clk 0:00:39.1]} 13... Nxf3+ {[%clk 0:00:33.9]} 14. Bxf3 {[%clk 0:00:38]} 14... Bxf3 {[%clk 0:00:33.1]} 15. Qxf3 {[%clk 0:00:37.3]} 15... Nh5 {[%clk 0:00:32]} 16. Be3 {[%clk 0:00:34.5]} 16... Rhg8 {[%clk 0:00:26.8]} 17. Bxa7 {[%clk 0:00:32.8]} 17... Nf6 {[%clk 0:00:25]} 18. Be3 {[%clk 0:00:31.5]} 18... e4 {[%clk 0:00:24.3]} 19. dxe4 {[%clk 0:00:30]} 19... g5 {[%clk 0:00:24]} 20. Qe2 {[%clk 0:00:26.5]} 20... g4 {[%clk 0:00:23.6]} 21. f3 {[%clk 0:00:24.8]} 21... gxf3 {[%clk 0:00:21.8]} 22. Qxf3 {[%clk 0:00:24.2]} 22... Ng4 {[%clk 0:00:19.1]} 23. Qe2 {[%clk 0:00:19.7]} 23... Nxe3 {[%clk 0:00:18.3]} 24. Qxe3 {[%clk 0:00:18.4]} 24... Bg5 {[%clk 0:00:18.1]} 25. Qe2 {[%clk 0:00:16.3]} 25... Rg6 {[%clk 0:00:17.4]} 26. a4 {[%clk 0:00:12.1]} 26... Rdg8 {[%clk 0:00:17]} 27. g3 {[%clk 0:00:09.4]} 27... Bf6 {[%clk 0:00:16.7]} 28. Qd2 {[%clk 0:00:07.1]} 28... Be5 {[%clk 0:00:14.7]} 29. Rf3 {[%clk 0:00:04.4]} 29... Bxg3 {[%clk 0:00:14.3]} 30. hxg3 {[%clk 0:00:03.8]} 30... Rxg3+ {[%clk 0:00:13.4]} 31. Rxg3 {[%clk 0:00:02.5]} 31... Rxg3+ {[%clk 0:00:13]} 32. Kf1 {[%clk 0:00:02.3]} 32... Qh3+ {[%clk 0:00:10.1]} 33. Ke1 {[%clk 0:00:01.4]} 33... Qh1+ {[%clk 0:00:08.4]} 34. Ke2 {[%clk 0:00:00.8]} 34... Qf3+ {[%clk 0:00:08.1]} 0-1

[Event "Live Chess"]
[Site "Chess.com"]
[Date "2010.12.10"]
[Round "-"]
[White "hackbuddy"]
[Black "hipposcottimus"]
[Result "1-0"]
[CurrentPosition "1r6/R6R/6pk/6br/1BP5/1KN5/PP6/8 b - -"]
[Timezone "UTC"]
[ECO "C20"]
[ECOUrl "https://www.chess.com/openings/Kings-Pawn-Opening-Wayward-Queen-Attack-2...Nc6-3.Bc4"]
[UTCDate "2010.12.10"]
[UTCTime "05:51:56"]
[WhiteElo "1415"]
[BlackElo "1663"]
[TimeControl "60"]
[Termination "hackbuddy won by checkmate"]
[StartTime "05:51:56"]
[EndDate "2010.12.10"]
[EndTime "05:53:42"]
[Link "https://www.chess.com/game/live/75812114"]

1. e4 {[%clk 0:01:00]} 1... e5 {[%clk 0:01:00]} 2. Qh5 {[%clk 0:00:59.1]} 2... Nc6 {[%clk 0:00:59.7]} 3. Bc4 {[%clk 0:00:58.6]} 3... g6 {[%clk 0:00:58.6]} 4. Qf3 {[%clk 0:00:57.8]} 4... Nf6 {[%clk 0:00:58.4]} 5. Qb3 {[%clk 0:00:57.4]} 5... d5 {[%clk 0:00:55.9]} 6. exd5 {[%clk 0:00:56]} 6... Nd4 {[%clk 0:00:54.9]} 7. Bb5+ {[%clk 0:00:55]} 7... Bd7 {[%clk 0:00:53.2]} 8. Bxd7+ {[%clk 0:00:52.8]} 8... Qxd7 {[%clk 0:00:52.4]} 9. Qxb7 {[%clk 0:00:51.4]} 9... Qxd5 {[%clk 0:00:43.4]} 10. Qxd5 {[%clk 0:00:50.1]} 10... Nxd5 {[%clk 0:00:42.8]} 11. Kd1 {[%clk 0:00:48.9]} 11... Bg7 {[%clk 0:00:42.4]} 12. Ne2 {[%clk 0:00:48]} 12... O-O {[%clk 0:00:41.5]} 13. Nxd4 {[%clk 0:00:47]} 13... exd4 {[%clk 0:00:41.3]} 14. c3 {[%clk 0:00:46.5]} 14... dxc3 {[%clk 0:00:38.3]} 15. dxc3 {[%clk 0:00:45.8]} 15... Nf4 {[%clk 0:00:38.1]} 16. Bxf4 {[%clk 0:00:44.1]} 16... Rad8+ {[%clk 0:00:37.3]} 17. Kc2 {[%clk 0:00:41.5]} 17... Rfe8 {[%clk 0:00:35]} 18. Bxc7 {[%clk 0:00:40.6]} 18... Rc8 {[%clk 0:00:32.8]} 19. Ba5 {[%clk 0:00:38]} 19... Bf6 {[%clk 0:00:30.2]} 20. Rd1 {[%clk 0:00:36.8]} 20... Bg5 {[%clk 0:00:29.2]} 21. Rd7 {[%clk 0:00:34.7]} 21... Re2+ {[%clk 0:00:28]} 22. Kb3 {[%clk 0:00:29.4]} 22... Kg7 {[%clk 0:00:26.4]} 23. c4 {[%clk 0:00:28.6]} 23... Rxf2 {[%clk 0:00:24.9]} 24. Rxa7 {[%clk 0:00:26.3]} 24... Rxg2 {[%clk 0:00:24]} 25. Bd2 {[%clk 0:00:23]} 25... Rb8+ {[%clk 0:00:23.5]} 26. Bb4 {[%clk 0:00:21]} 26... Bf6 {[%clk 0:00:19.2]} 27. Nc3 {[%clk 0:00:19.7]} 27... Rxh2 {[%clk 0:00:18.9]} 28. Rd1 {[%clk 0:00:17.7]} 28... Rh5 {[%clk 0:00:18.6]} 29. Rdd7 {[%clk 0:00:16.6]} 29... Kh6 {[%clk 0:00:14.6]} 30. Rxf7 {[%clk 0:00:16.6]} 30... Bg5 {[%clk 0:00:14.2]} 31. Rxh7# {[%clk 0:00:15.5]} 1-0

[Event "Live Chess"]
[Site "Chess.com"]
[Date "2010.12.10"]
[Round "-"]
[White "hipposcottimus"]
[Black "dantime13"]
[Result "1-0"]
[CurrentPosition "8/4Q3/3p1Bp1/5p1p/P1k1P3/8/1P3PPP/6K1 b - a3"]
[Timezone "UTC"]
[ECO "B10"]
[ECOUrl "https://www.chess.com/openings/Caro-Kann-Defense-2.Nf3"]
[UTCDate "2010.12.10"]
[UTCTime "05:40:13"]
[WhiteElo "1675"]
[BlackElo "1636"]
[TimeControl "60"]
[Termination "hipposcottimus won on time"]
[StartTime "05:40:13"]
[EndDate "2010.12.10"]
[EndTime "05:41:51"]
[Link "https://www.chess.com/game/live/75809688"]

1. e4 {[%clk 0:01:00]} 1... c6 {[%clk 0:01:00]} 2. Nf3 {[%clk 0:00:59.6]} 2... b5 {[%clk 0:01:00]} 3. d4 {[%clk 0:00:56.2]} 3... Bb7 {[%clk 0:01:00]} 4. c4 {[%clk 0:00:55.3]} 4... Qc7 {[%clk 0:01:00]} 5. cxb5 {[%clk 0:00:54.1]} 5... cxb5 {[%clk 0:00:59.5]} 6. Nc3 {[%clk 0:00:53.8]} 6... a6 {[%clk 0:00:59.5]} 7. Bd3 {[%clk 0:00:53.5]} 7... g6 {[%clk 0:00:58.9]} 8. O-O {[%clk 0:00:53.3]} 8... Bg7 {[%clk 0:00:58.3]} 9. Re1 {[%clk 0:00:53.1]} 9... h5 {[%clk 0:00:57.9]} 10. Nd5 {[%clk 0:00:51]} 10... f6 {[%clk 0:00:57.5]} 11. Nxc7+ {[%clk 0:00:48.4]} 11... Kd8 {[%clk 0:00:54.2]} 12. Nxa8 {[%clk 0:00:48.1]} 12... Bxa8 {[%clk 0:00:54.2]} 13. Qb3 {[%clk 0:00:47.1]} 13... d6 {[%clk 0:00:52.7]} 14. Bxb5 {[%clk 0:00:46.2]} 14... axb5 {[%clk 0:00:51]} 15. Qxb5 {[%clk 0:00:46]} 15... Kc8 {[%clk 0:00:50.6]} 16. Qc4+ {[%clk 0:00:43.7]} 16... Bc6 {[%clk 0:00:47]} 17. Be3 {[%clk 0:00:43.4]} 17... Nh6 {[%clk 0:00:45.1]} 18. d5 {[%clk 0:00:43.1]} 18... Kd7 {[%clk 0:00:42.2]} 19. dxc6+ {[%clk 0:00:42.7]} 19... Nxc6 {[%clk 0:00:40.8]} 20. Rec1 {[%clk 0:00:41.4]} 20... Rc8 {[%clk 0:00:40.8]} 21. Rc2 {[%clk 0:00:41.1]} 21... f5 {[%clk 0:00:35.5]} 22. Nd4 {[%clk 0:00:37.8]} 22... Bxd4 {[%clk 0:00:33.3]} 23. Bxd4 {[%clk 0:00:36.6]} 23... Ng4 {[%clk 0:00:31.3]} 24. Bg7 {[%clk 0:00:36.2]} 24... Rc7 {[%clk 0:00:26.9]} 25. Qa4 {[%clk 0:00:35.9]} 25... Ne5 {[%clk 0:00:23.8]} 26. Rac1 {[%clk 0:00:35.5]} 26... Nd3 {[%clk 0:00:20.3]} 27. Rxc6 {[%clk 0:00:33.3]} 27... Nxc1 {[%clk 0:00:18.3]} 28. Rxc1+ {[%clk 0:00:30.5]} 28... Kc8 {[%clk 0:00:15.6]} 29. Rxc7+ {[%clk 0:00:30.2]} 29... Kxc7 {[%clk 0:00:15]} 30. Qe8 {[%clk 0:00:29.5]} 30... Kb6 {[%clk 0:00:13.5]} 31. Qxe7 {[%clk 0:00:29.2]} 31... Kc5 {[%clk 0:00:12.9]} 32. Bf6 {[%clk 0:00:26.4]} 32... Kc4 {[%clk 0:00:12.9]} 33. a4 {[%clk 0:00:25.7]} 1-0

[Event "Live Chess"]
[Site "Chess.com"]
[Date "2010.12.10"]
[Round "-"]
[White "dantime13"]
[Black "hipposcottimus"]
[Result "1-0"]
[CurrentPosition "1k6/5p2/5B2/b1p2P2/1pP2P1K/8/1r5P/8 b - -"]
[Timezone "UTC"]
[ECO "C44"]
[ECOUrl "https://www.chess.com/openings/Ponziani-Opening-Jaenisch-Counterattack-4.d4"]
[UTCDate "2010.12.10"]
[UTCTime "05:36:47"]
[WhiteElo "1643"]
[BlackElo "1668"]
[TimeControl "60"]
[Termination "dantime13 won on time"]
[StartTime "05:36:47"]
[EndDate "2010.12.10"]
[EndTime "05:39:09"]
[Link "https://www.chess.com/game/live/75809041"]

1. e4 {[%clk 0:01:00]} 1... e5 {[%clk 0:01:00]} 2. Nf3 {[%clk 0:00:59.5]} 2... Nc6 {[%clk 0:00:59.7]} 3. c3 {[%clk 0:00:59.1]} 3... Nf6 {[%clk 0:00:59.4]} 4. d4 {[%clk 0:00:59.1]} 4... d5 {[%clk 0:00:59.1]} 5. dxe5 {[%clk 0:00:57.8]} 5... dxe4 {[%clk 0:00:57]} 6. Qxd8+ {[%clk 0:00:56.4]} 6... Nxd8 {[%clk 0:00:55.1]} 7. exf6 {[%clk 0:00:55.9]} 7... exf3 {[%clk 0:00:54.7]} 8. fxg7 {[%clk 0:00:54.4]} 8... Bxg7 {[%clk 0:00:49]} 9. gxf3 {[%clk 0:00:53.7]} 9... Be6 {[%clk 0:00:46.5]} 10. Bg2 {[%clk 0:00:53.7]} 10... Nc6 {[%clk 0:00:46.2]} 11. O-O {[%clk 0:00:53.3]} 11... Bd7 {[%clk 0:00:45.7]} 12. Nd2 {[%clk 0:00:51.8]} 12... O-O-O {[%clk 0:00:45.4]} 13. Nc4 {[%clk 0:00:51.1]} 13... Rhg8 {[%clk 0:00:45.1]} 14. Bf4 {[%clk 0:00:48.9]} 14... Bf6 {[%clk 0:00:34.5]} 15. Rae1 {[%clk 0:00:47.5]} 15... Bh3 {[%clk 0:00:34.1]} 16. Bg3 {[%clk 0:00:40.3]} 16... Be6 {[%clk 0:00:31]} 17. Ne3 {[%clk 0:00:36.4]} 17... b5 {[%clk 0:00:30.7]} 18. f4 {[%clk 0:00:35.6]} 18... Ne7 {[%clk 0:00:24.1]} 19. f3 {[%clk 0:00:32.3]} 19... Nf5 {[%clk 0:00:23.8]} 20. Nxf5 {[%clk 0:00:30.9]} 20... Bxf5 {[%clk 0:00:23.6]} 21. Re2 {[%clk 0:00:29.3]} 21... Bd3 {[%clk 0:00:22.6]} 22. Ree1 {[%clk 0:00:24.5]} 22... Bxf1 {[%clk 0:00:21.5]} 23. Rxf1 {[%clk 0:00:24.5]} 23... h5 {[%clk 0:00:19.5]} 24. Kh1 {[%clk 0:00:22.9]} 24... h4 {[%clk 0:00:19]} 25. Bf2 {[%clk 0:00:21.9]} 25... Rh8 {[%clk 0:00:15.3]} 26. Bh3+ {[%clk 0:00:21.2]} 26... Kb8 {[%clk 0:00:13.8]} 27. Rg1 {[%clk 0:00:20.6]} 27... Rdg8 {[%clk 0:00:12.9]} 28. Bc5 {[%clk 0:00:18.9]} 28... Rd8 {[%clk 0:00:11.6]} 29. Kg2 {[%clk 0:00:14.7]} 29... Rd2+ {[%clk 0:00:10.8]} 30. Kf1 {[%clk 0:00:13.8]} 30... Rxb2 {[%clk 0:00:10.5]} 31. Bd4 {[%clk 0:00:12.5]} 31... Rb1+ {[%clk 0:00:10.1]} 32. Kf2 {[%clk 0:00:10.4]} 32... Rxg1 {[%clk 0:00:09.8]} 33. Kxg1 {[%clk 0:00:09.1]} 33... Rg8+ {[%clk 0:00:09.4]} 34. Kf2 {[%clk 0:00:07.2]} 34... Be7 {[%clk 0:00:09.1]} 35. c4 {[%clk 0:00:06.5]} 35... b4 {[%clk 0:00:08.7]} 36. Bb2 {[%clk 0:00:04.5]} 36... c5 {[%clk 0:00:08.5]} 37. a3 {[%clk 0:00:04.5]} 37... a5 {[%clk 0:00:08.2]} 38. axb4 {[%clk 0:00:03.4]} 38... axb4 {[%clk 0:00:08]} 39. Bg2 {[%clk 0:00:02.7]} 39... Bd8 {[%clk 0:00:07.4]} 40. f5 {[%clk 0:00:02.7]} 40... Ba5 {[%clk 0:00:06.9]} 41. f4 {[%clk 0:00:02.7]} 41... Rg7 {[%clk 0:00:05.6]} 42. Kf3 {[%clk 0:00:02.7]} 42... Rg8 {[%clk 0:00:04.5]} 43. Bf1 {[%clk 0:00:02.7]} 43... Rd8 {[%clk 0:00:03.2]} 44. Bd3 {[%clk 0:00:02.7]} 44... Rxd3+ {[%clk 0:00:00.7]} 45. Kg4 {[%clk 0:00:01.8]} 45... Rb3 {[%clk 0:00:00.5]} 46. Bf6 {[%clk 0:00:01]} 46... Rb2 {[%clk 0:00:00.3]} 47. Kxh4 {[%clk 0:00:01]} 1-0

[Event "Live Chess"]
[Site "Chess.com"]
[Date "2010.12.10"]
[Round "-"]
[White "hipposcottimus"]
[Black "rodolf"]
[Result "1-0"]
[CurrentPosition "r4rb1/p5pp/3pk3/4n3/5nP1/1PN5/P1P2P1P/R4RK1 b - -"]
[Timezone "UTC"]
[ECO "C41"]
[ECOUrl "https://www.chess.com/openings/Philidor-Defense-3.Bc4"]
[UTCDate "2010.12.10"]
[UTCTime "05:32:22"]
[WhiteElo "1677"]
[BlackElo "1636"]
[TimeControl "60"]
[Termination "hipposcottimus won on time"]
[StartTime "05:32:22"]
[EndDate "2010.12.10"]
[EndTime "05:34:26"]
[Link "https://www.chess.com/game/live/75808219"]

1. e4 {[%clk 0:01:00]} 1... e5 {[%clk 0:01:00]} 2. Nf3 {[%clk 0:00:59.4]} 2... d6 {[%clk 0:00:59.7]} 3. Bc4 {[%clk 0:00:59]} 3... Bg4 {[%clk 0:00:58.2]} 4. d4 {[%clk 0:00:57.9]} 4... Nd7 {[%clk 0:00:57.5]} 5. Qd3 {[%clk 0:00:52.9]} 5... Be7 {[%clk 0:00:55.6]} 6. dxe5 {[%clk 0:00:51.2]} 6... dxe5 {[%clk 0:00:54.8]} 7. Qd5 {[%clk 0:00:44.9]} 7... Bh5 {[%clk 0:00:51.3]} 8. Nxe5 {[%clk 0:00:42.4]} 8... Ngf6 {[%clk 0:00:39.5]} 9. Nxf7 {[%clk 0:00:33]} 9... Nxd5 {[%clk 0:00:37]} 10. Nxd8 {[%clk 0:00:32.3]} 10... N5b6 {[%clk 0:00:24.3]} 11. Nxb7 {[%clk 0:00:20.2]} 11... Nxc4 {[%clk 0:00:22.7]} 12. b3 {[%clk 0:00:15.3]} 12... Nce5 {[%clk 0:00:20.9]} 13. Na5 {[%clk 0:00:13.9]} 13... Bf7 {[%clk 0:00:15.1]} 14. Nc6 {[%clk 0:00:13.6]} 14... Bd6 {[%clk 0:00:12.7]} 15. Nd4 {[%clk 0:00:12.1]} 15... Ke7 {[%clk 0:00:09.7]} 16. Nb5 {[%clk 0:00:11]} 16... Ke6 {[%clk 0:00:08.1]} 17. Nxd6 {[%clk 0:00:10.2]} 17... cxd6 {[%clk 0:00:07.1]} 18. Bf4 {[%clk 0:00:09.3]} 18... Ng6 {[%clk 0:00:05.7]} 19. O-O {[%clk 0:00:09]} 19... Rhf8 {[%clk 0:00:04.1]} 20. g3 {[%clk 0:00:08.7]} 20... Bg8 {[%clk 0:00:03.3]} 21. g4 {[%clk 0:00:08.3]} 21... Nxf4 {[%clk 0:00:02.6]} 22. e5 {[%clk 0:00:08.1]} 22... Nxe5 {[%clk 0:00:00.2]} 23. Nc3 {[%clk 0:00:07.7]} 1-0

[Event "Live Chess"]
[Site "Chess.com"]
[Date "2010.12.10"]
[Round "-"]
[White "hipposcottimus"]
[Black "leonardodavinci1964"]
[Result "1-0"]
[CurrentPosition "2Q5/7p/6p1/8/3k1p2/8/P6P/1K6 b - -"]
[Timezone "UTC"]
[ECO "C00"]
[ECOUrl "https://www.chess.com/openings/Pirc-Defense-Small-Center-Defense"]
[UTCDate "2010.12.10"]
[UTCTime "05:17:24"]
[WhiteElo "1670"]
[BlackElo "1444"]
[TimeControl "60"]
[Termination "hipposcottimus won by resignation"]
[StartTime "05:17:24"]
[EndDate "2010.12.10"]
[EndTime "05:19:22"]
[Link "https://www.chess.com/game/live/75805333"]

1. e4 {[%clk 0:01:00]} 1... e6 {[%clk 0:01:00]} 2. d4 {[%clk 0:00:58.3]} 2... d6 {[%clk 0:00:59.4]} 3. e5 {[%clk 0:00:58]} 3... c6 {[%clk 0:00:57.6]} 4. Nf3 {[%clk 0:00:56.4]} 4... dxe5 {[%clk 0:00:56.2]} 5. dxe5 {[%clk 0:00:55.7]} 5... Qxd1+ {[%clk 0:00:54.5]} 6. Kxd1 {[%clk 0:00:55.5]} 6... Bc5 {[%clk 0:00:53.3]} 7. Bd2 {[%clk 0:00:55.3]} 7... Bxf2 {[%clk 0:00:51.4]} 8. Nc3 {[%clk 0:00:55]} 8... Bc5 {[%clk 0:00:49.8]} 9. Ne4 {[%clk 0:00:54.4]} 9... Bb6 {[%clk 0:00:48.5]} 10. Bc3 {[%clk 0:00:52.8]} 10... Ne7 {[%clk 0:00:47.8]} 11. Kd2 {[%clk 0:00:52.1]} 11... Nf5 {[%clk 0:00:47]} 12. Rd1 {[%clk 0:00:50.8]} 12... Be3+ {[%clk 0:00:45.9]} 13. Ke1 {[%clk 0:00:47.4]} 13... O-O {[%clk 0:00:44.9]} 14. Bd2 {[%clk 0:00:46.7]} 14... Bxd2+ {[%clk 0:00:42.6]} 15. Rxd2 {[%clk 0:00:45.8]} 15... b5 {[%clk 0:00:42.1]} 16. Kd1 {[%clk 0:00:45.4]} 16... Bb7 {[%clk 0:00:41.5]} 17. Kc1 {[%clk 0:00:45.1]} 17... Na6 {[%clk 0:00:41.1]} 18. Nc3 {[%clk 0:00:42.5]} 18... Rad8 {[%clk 0:00:39.9]} 19. Be2 {[%clk 0:00:39.6]} 19... Rxd2 {[%clk 0:00:38.7]} 20. Kxd2 {[%clk 0:00:39.3]} 20... Rd8+ {[%clk 0:00:37.9]} 21. Kc1 {[%clk 0:00:39]} 21... c5 {[%clk 0:00:36.9]} 22. Rd1 {[%clk 0:00:38.7]} 22... b4 {[%clk 0:00:35.3]} 23. Bxa6 {[%clk 0:00:35.1]} 23... Rxd1+ {[%clk 0:00:32.8]} 24. Nxd1 {[%clk 0:00:32.4]} 24... Bxa6 {[%clk 0:00:32]} 25. c3 {[%clk 0:00:31.1]} 25... bxc3 {[%clk 0:00:30.5]} 26. Nxc3 {[%clk 0:00:30.7]} 26... g6 {[%clk 0:00:29.7]} 27. Kb1 {[%clk 0:00:30.4]} 27... Kf8 {[%clk 0:00:27.9]} 28. g4 {[%clk 0:00:30.1]} 28... Nd4 {[%clk 0:00:26]} 29. Nd2 {[%clk 0:00:28.4]} 29... Ke7 {[%clk 0:00:24.5]} 30. Nb3 {[%clk 0:00:28.1]} 30... c4 {[%clk 0:00:20.7]} 31. Nxd4 {[%clk 0:00:26.8]} 31... Kd7 {[%clk 0:00:18.4]} 32. Ncb5 {[%clk 0:00:23.9]} 32... Bxb5 {[%clk 0:00:16.7]} 33. Nxb5 {[%clk 0:00:22.7]} 33... Kc6 {[%clk 0:00:16.4]} 34. Nxa7+ {[%clk 0:00:21.1]} 34... Kd5 {[%clk 0:00:15.9]} 35. Nb5 {[%clk 0:00:20.3]} 35... Kxe5 {[%clk 0:00:15.5]} 36. Nc7 {[%clk 0:00:19.9]} 36... Kf4 {[%clk 0:00:14.8]} 37. Na6 {[%clk 0:00:19.6]} 37... Kxg4 {[%clk 0:00:14]} 38. Nb4 {[%clk 0:00:19.3]} 38... Kf4 {[%clk 0:00:13.3]} 39. Nc2 {[%clk 0:00:19]} 39... e5 {[%clk 0:00:13]} 40. b3 {[%clk 0:00:18.7]} 40... e4 {[%clk 0:00:12.7]} 41. bxc4 {[%clk 0:00:17.9]} 41... e3 {[%clk 0:00:12.3]} 42. Nxe3 {[%clk 0:00:17.5]} 42... Kxe3 {[%clk 0:00:11.7]} 43. c5 {[%clk 0:00:17.3]} 43... Kd4 {[%clk 0:00:11.3]} 44. c6 {[%clk 0:00:17.1]} 44... f5 {[%clk 0:00:09.8]} 45. c7 {[%clk 0:00:16.8]} 45... f4 {[%clk 0:00:09.5]} 46. c8=Q {[%clk 0:00:15.9]} 1-0

[Event "Live Chess"]
[Site "Chess.com"]
[Date "2010.12.10"]
[Round "-"]
[White "hipposcottimus"]
[Black "thinkaboutitplz"]
[Result "1-0"]
[CurrentPosition "8/6p1/4R1k1/5p1p/4p3/2K5/r7/8 b - -"]
[Timezone "UTC"]
[ECO "B20"]
[ECOUrl "https://www.chess.com/openings/Sicilian-Defense"]
[UTCDate "2010.12.10"]
[UTCTime "05:13:32"]
[WhiteElo "1666"]
[BlackElo "1597"]
[TimeControl "60+1"]
[Termination "hipposcottimus won on time"]
[StartTime "05:13:32"]
[EndDate "2010.12.10"]
[EndTime "05:16:43"]
[Link "https://www.chess.com/game/live/75804554"]

1. e4 {[%clk 0:01:00]} 1... c5 {[%clk 0:01:00]} 2. Bb5 {[%clk 0:00:58.8]} 2... Nc6 {[%clk 0:00:59.7]} 3. Bxc6 {[%clk 0:00:58.9]} 3... bxc6 {[%clk 0:00:59.9]} 4. c4 {[%clk 0:00:59.7]} 4... d5 {[%clk 0:00:57.3]} 5. d3 {[%clk 0:00:57.5]} 5... dxe4 {[%clk 0:00:54.8]} 6. dxe4 {[%clk 0:00:57.8]} 6... Qxd1+ {[%clk 0:00:54]} 7. Kxd1 {[%clk 0:00:58.5]} 7... Nf6 {[%clk 0:00:54]} 8. Ne2 {[%clk 0:00:59.2]} 8... Nxe4 {[%clk 0:00:53]} 9. Be3 {[%clk 0:01:00]} 9... Be6 {[%clk 0:00:50]} 10. Nbc3 {[%clk 0:01:00]} 10... Nxc3+ {[%clk 0:00:48.3]} 11. Nxc3 {[%clk 0:00:59.2]} 11... Bxc4 {[%clk 0:00:48.3]} 12. Kc2 {[%clk 0:00:59.9]} 12... e6 {[%clk 0:00:48.2]} 13. Rad1 {[%clk 0:01:00.6]} 13... Be7 {[%clk 0:00:47.9]} 14. Kb1 {[%clk 0:01:01.3]} 14... O-O {[%clk 0:00:46.3]} 15. Na4 {[%clk 0:01:01.9]} 15... Bd5 {[%clk 0:00:45.6]} 16. Bxc5 {[%clk 0:01:02.1]} 16... Bxc5 {[%clk 0:00:43.9]} 17. Nxc5 {[%clk 0:01:02.8]} 17... Bxg2 {[%clk 0:00:43.7]} 18. Rhg1 {[%clk 0:01:01.5]} 18... Bf3 {[%clk 0:00:42.9]} 19. Rd3 {[%clk 0:01:00.9]} 19... Bh5 {[%clk 0:00:40.3]} 20. Rdg3 {[%clk 0:01:01.6]} 20... Bg6+ {[%clk 0:00:39.8]} 21. Ka1 {[%clk 0:01:00.7]} 21... Rfd8 {[%clk 0:00:38.9]} 22. Nb7 {[%clk 0:00:59.3]} 22... Rd2 {[%clk 0:00:37.6]} 23. Nc5 {[%clk 0:01:00.1]} 23... Rb8 {[%clk 0:00:36.6]} 24. Nb3 {[%clk 0:00:59.9]} 24... Rxf2 {[%clk 0:00:35.3]} 25. h4 {[%clk 0:00:58]} 25... h5 {[%clk 0:00:34.2]} 26. Rg5 {[%clk 0:00:57.7]} 26... Rd8 {[%clk 0:00:33.2]} 27. Ra5 {[%clk 0:00:57.9]} 27... Rd7 {[%clk 0:00:29.9]} 28. Rc5 {[%clk 0:00:56.6]} 28... Be4 {[%clk 0:00:25.6]} 29. Rgc1 {[%clk 0:00:56.2]} 29... Bd5 {[%clk 0:00:24.7]} 30. R5c3 {[%clk 0:00:55.8]} 30... Bxb3 {[%clk 0:00:23.7]} 31. Rxb3 {[%clk 0:00:55.5]} 31... Rdd2 {[%clk 0:00:21.3]} 32. Rbc3 {[%clk 0:00:56.2]} 32... Rxb2 {[%clk 0:00:19.2]} 33. Ra3 {[%clk 0:00:52.9]} 33... Rbc2 {[%clk 0:00:17.1]} 34. Rxc2 {[%clk 0:00:50.4]} 34... Rxc2 {[%clk 0:00:16.8]} 35. Rxa7 {[%clk 0:00:51.2]} 35... Kh7 {[%clk 0:00:16.1]} 36. Rc7 {[%clk 0:00:51]} 36... Kg6 {[%clk 0:00:15.6]} 37. Re7 {[%clk 0:00:50.9]} 37... Kf6 {[%clk 0:00:15]} 38. Rc7 {[%clk 0:00:51.1]} 38... e5 {[%clk 0:00:14.9]} 39. Ra7 {[%clk 0:00:51.3]} 39... e4 {[%clk 0:00:14.3]} 40. Ra3 {[%clk 0:00:52.1]} 40... c5 {[%clk 0:00:12.8]} 41. Kb1 {[%clk 0:00:52.6]} 41... Rh2 {[%clk 0:00:12]} 42. Re3 {[%clk 0:00:52.8]} 42... Kf5 {[%clk 0:00:11.5]} 43. Rc3 {[%clk 0:00:49.9]} 43... Rxh4 {[%clk 0:00:07.9]} 44. Rxc5+ {[%clk 0:00:50.5]} 44... Kg6 {[%clk 0:00:08]} 45. Rc6+ {[%clk 0:00:50.4]} 45... Kh7 {[%clk 0:00:07.4]} 46. Rc7 {[%clk 0:00:50.6]} 46... Kg6 {[%clk 0:00:06.5]} 47. Re7 {[%clk 0:00:50.5]} 47... f5 {[%clk 0:00:03.9]} 48. Kc2 {[%clk 0:00:50.2]} 48... Rh2+ {[%clk 0:00:03]} 49. Kc3 {[%clk 0:00:50]} 49... Rxa2 {[%clk 0:00:02.3]} 50. Re6+ {[%clk 0:00:50.7]} 1-0